Cogmind - Beta 13 @@@ ROGUE MODE // 2024.05.10 @ 13:52:24 Player: Meraxes Result: Destroyed by Y-45 Defender with Heavy Assault Rifle Performance ------------- Evolutions (2) 1000 Regions Visited (5) 1000 Robots Destroyed (3) 15 Value Destroyed (59) 59 Prototype IDs (25) 500 Alien Tech Used (0) 0 Bonus (300) 300 TOTAL SCORE: 2874 Bonus ------- Aligned with FarCom 300 Cogmind --------- Core Integrity 0/550 Matter 226/300 Energy 100/100 System Corruption 0% Temperature Cool (2) Movement Flying (35) Location -8/Materials Parts ------- > --- POWER (1) -------- (None) > --- PROPULSION (4) --- Cesium-ion Thruster > --- UTILITY (4) ------ Power Shielding > --- WEAPON (2) ------- (None) > --- INVENTORY (5) ---- Sensor Array Signal Interpreter Flail Peak State ------------ > --- POWER ------------ Ion Engine > --- PROPULSION ------- Wheel Compact Wheel > --- UTILITY ---------- Small Storage Unit Improved Terrain Scanner Cloak of Protection > --- WEAPON ----------- Assault Rifle Light Assault Rifle > --- INVENTORY -------- Ion Engine Aluminum Leg Sensor Array Signal Interpreter ECM Suite Power Shielding Light Assault Rifle [Rating: 17] Favorites ----------- Power Ion Engine Engine Ion Engine Propulsion Compact Wheel Leg Aluminum Leg Wheel Compact Wheel Flight Unit Cesium-ion Thruster Utility Small Storage Unit Device ECM Suite Storage Small Storage Unit Protection Power Shielding Weapon Light Assault Rifle Ballistic Gun Light Assault Rifle Impact Weapon Flail Build | -11 -10 -10 -10 -9 -8 ------- Run | Yrd Mat Min Exi Min Mat Slots Evolved 4 | . . . . . 4 Power . | . . . . . . Propulsion 2 | . . . . . 2 Utility 2 | . . . . . 2 Weapon . | . . . . . . Parts Attached 21 | 7 1 . 1 . 12 Power 3 | 1 . . . . 2 Engine 3 | 1 . . . . 2 Core . | . . . . . . Reactor . | . . . . . . Propulsion 5 | 2 . . . . 3 Treads . | . . . . . . Leg 1 | . . . . . 1 Wheel 2 | 2 . . . . . Hover . | . . . . . . Flight 2 | . . . . . 2 Utility 8 | 2 1 . 1 . 4 Device 5 | 1 1 . 1 . 2 Storage 1 | 1 . . . . . Processor . | . . . . . . Hackware . | . . . . . . Protection 2 | . . . . . 2 Artifact . | . . . . . . Weapon 5 | 2 . . . . 3 Energy Gun . | . . . . . . Energy Cannon . | . . . . . . Ballistic Gun 4 | 2 . . . . 2 Ballistic Cannon . | . . . . . . Launcher . | . . . . . . Special Weapon . | . . . . . . Impact Weapon 1 | . . . . . 1 Slashing Weapon . | . . . . . . Piercing Weapon . | . . . . . . Special Melee Weapon . | . . . . . . Unidentified Prototypes . | . . . . . . Parts Lost 16 | . . . . . 16 Power 3 | . . . . . 3 Propulsion 4 | . . . . . 4 Utility 5 | . . . . . 5 Weapon 4 | . . . . . 4 Highest Loss Streak 10 | . . . . . 10 To Critical Strikes 2 | . . . . . 2 Average Slot Usage (%) 85 | . 100 100 100 100 46 Engine 11 | . 14 14 14 14 6 Wheel 23 | . 28 28 28 28 10 Device 12 | . 14 14 14 14 8 Storage 11 | . 14 14 14 14 6 Ballistic Gun 23 | . 28 28 28 28 10 Naked Turns . | . . . . . . Heaviest Build 22 | 14 15 15 21 21 22 Greatest Support 26 | 26 26 26 26 26 26 Greatest Overweight (x) 4 | 1 . . . . 4 Average Overweight (x) . | . . . . . . Largest Inventory Capacity 8 | 8 8 8 8 8 8 Average Capacity 7 | 7 8 8 8 8 7 Most Carried 8 | 4 8 8 8 8 8 Average Carried 6 | 1 6 8 8 8 5 Final Capacity 8 | 8 8 8 8 8 5 Final Carried 8 | 4 8 8 8 8 3 Class Distribution -------------------- 93% | Mutant 6% | Skirmisher Dominant Class ---------------- Mutant | -10/Materials Mutant | -10/Mines Mutant | -10/Exiles Mutant | -9/Mines Mutant | -8/Materials Resources | -11 -10 -10 -10 -9 -8 ----------- Run | Yrd Mat Min Exi Min Mat Matter Collected 311 | 235 65 . . . 11 Remotely . | . . . . . . Salvage Created 93 | 16 24 . . . 53 Parts 11 | 3 3 . . . 5 Haulers Intercepted . | . . . . . . Recyclers Shooed . | . . . . . . Parts Field Recycled . | . . . . . . Retrieved Matter . | . . . . . . Parts Self-Destructed . | . . . . . . Prevented . | . . . . . . Kills | -11 -10 -10 -10 -9 -8 ------- Run | Yrd Mat Min Exi Min Mat Combat Hostiles Destroyed 1 | . . . . . 1 Guns 1 | . . . . . 1 Classes Destroyed 2 | 1 . . . . 1 Tunneler 2 | 1 1 . . . . Sentry 1 | . . . . . 1 Best Kill Streak 1 | 1 1 . . . 1 Combat Bots Only 1 | . . . . . 1 Max Kills in Single Turn 1 | 1 1 . . . 1 Gunslinging . | . . . . . . Exploded . | . . . . . . Melee . | . . . . . . Uniques/NPCs Destroyed . | . . . . . . Combat | -11 -10 -10 -10 -9 -8 -------- Run | Yrd Mat Min Exi Min Mat Hostile Shots Fired 214 | . 4 . . . 210 Missed 68 | . 3 . . . 65 Damage Taken 1913 | . 20 . . . 1893 Core 556 | . . . . . 556 Absorbed by Shields . | . . . . . . Redirected to Shielding 26 | . . . . . 26 Core Remaining (%) 100 | 100 . . . 100 . Volleys Fired 22 | 1 4 . . . 17 Largest 2 | 2 2 . . . 2 Hottest 43 | 40 40 . . . 43 Shots Fired 40 | 2 8 . . . 30 Gun 40 | 2 8 . . . 30 Cannon . | . . . . . . Launcher . | . . . . . . Special . | . . . . . . Kinetic 40 | 2 8 . . . 30 Thermal . | . . . . . . Explosive . | . . . . . . Electromagnetic . | . . . . . . Robot Hit Streak 12 | 2 9 . . . 12 Robot Miss Streak 1 | . . . . . 1 Penetration Max . | . . . . . . Secondary Targets . | . . . . . . Shots Hit Robots 32 | 2 7 . . . 23 Core Hits 9 | 1 2 . . . 6 Critical Kills . | . . . . . . Critical Parts Destroyed . | . . . . . . Critical Strikes . | . . . . . . Melee Attacks . | . . . . . . Impact . | . . . . . . Slashing . | . . . . . . Piercing . | . . . . . . Sneak Attacks . | . . . . . . Combat Hostiles . | . . . . . . Follow-up Attacks . | . . . . . . Damage Inflicted 282 | 20 77 . . . 185 Guns 271 | 20 77 . . . 174 Cannons . | . . . . . . Explosions . | . . . . . . Melee . | . . . . . . Ramming 11 | . . . . . 11 Kinetic 271 | 20 77 . . . 174 Thermal . | . . . . . . Explosive . | . . . . . . Electromagnetic . | . . . . . . Impact . | . . . . . . Slashing . | . . . . . . Piercing . | . . . . . . Highest Corruption . | . . . . . . Average Corruption . | . . . . . . Corruption Purged . | . . . . . . Corruption Blocked . | . . . . . . Overload Shots . | . . . . . . Overflow Damage . | . . . . . . Projectiles . | . . . . . . Explosions . | . . . . . . Melee . | . . . . . . Knockbacks . | . . . . . . Impact . | . . . . . . Kinetic . | . . . . . . Secondary . | . . . . . . Self-Inflicted Damage 5 | . . . . . 5 Shots . | . . . . . . Rammed 6 | . . . . . 6 Targets Rammed 6 | . . . . . 6 Kicked . | . . . . . . Crushed . | . . . . . . Highest Temperature 3 | . . . . . 3 Average Temperature 3 | . . . . . 3 Received Heat Transfer 84 | . 12 . . . 72 Siege Activations . | . . . . . . Robots Corrupted . | . . . . . . Combat Hostiles . | . . . . . . Parts Fried . | . . . . . . Impact Corruptions . | . . . . . . Robots Melted . | . . . . . . Combat Hostiles . | . . . . . . Parts Melted . | . . . . . . Heat Transferred . | . . . . . . Parts Sabotaged . | . . . . . . Parts Stolen . | . . . . . . Parts Stripped . | . . . . . . Power Chain Reactions . | . . . . . . Alert | -11 -10 -10 -10 -9 -8 ------- Run | Yrd Mat Min Exi Min Mat Peak Influence 75 | 5 30 11 . . 75 Initial 11 | . 3 11 . . . Average 16 | 3 20 11 . . 22 Maximum Alert Level . | . . . . . . Low Security (%) 100 | 100 100 100 . 100 100 Level 1 . | . . . . . . Level 2 . | . . . . . . Level 3 . | . . . . . . Level 4 . | . . . . . . Level 5 . | . . . . . . High Security . | . . . . . . Max Security . | . . . . . . Squads Dispatched 3 | . 2 . . . 1 Investigation . | . . . . . . Extermination . | . . . . . . Reinforcement 3 | . 2 . . . 1 Assault . | . . . . . . Garrison . | . . . . . . Intercept . | . . . . . . Searches Triggered . | . . . . . . Construction Impeded . | . . . . . . Haulers Reinforced . | . . . . . . Active Scanning Responses . | . . . . . . Cargo Convoy Interrupts . | . . . . . . Stealth | -11 -10 -10 -10 -9 -8 --------- Run | Yrd Mat Min Exi Min Mat Distress Signals 1 | . . . . . 1 Communications Jammed . | . . . . . . Distress Signals . | . . . . . . Times Spotted 14 | . 3 2 . . 9 Peak Tracking Total 7 | . 2 2 . . 7 Tactical Retreats 4 | . 1 . . . 3 Traps | -11 -10 -10 -10 -9 -8 ------- Run | Yrd Mat Min Exi Min Mat Traps Triggered . | . . . . . . Indirectly . | . . . . . . Trap Hack Attempts . | . . . . . . Triggered . | . . . . . . Disarmed . | . . . . . . Reprogrammed . | . . . . . . Reused . | . . . . . . Traps Extracted . | . . . . . . Installed . | . . . . . . Triggered . | . . . . . . Machines | -11 -10 -10 -10 -9 -8 ---------- Run | Yrd Mat Min Exi Min Mat Machines Disabled . | . . . . . . Max in Single Turn . | . . . . . . Machines Repaired . | . . . . . . Machines Dismantled . | . . . . . . Machines Sabotaged . | . . . . . . Overloaded Fab Kills . | . . . . . . Hacking | -11 -10 -10 -10 -9 -8 --------- Run | Yrd Mat Min Exi Min Mat Machines Accessed 6 | . 1 . 3 . 2 Terminals 2 | . 1 . . . 1 Fabricators . | . . . . . . Repair Stations . | . . . . . . Recycling Units 1 | . . . . . 1 Scanalyzers . | . . . . . . Garrison Access . | . . . . . . Total Hacks 24 | . 3 . 17 . 4 Successful 21 | . 3 . 17 . 1 Failed 3 | . . . . . 3 Catastrophic 1 | . . . . . 1 Database Lockouts . | . . . . . . Manual 1 | . . . 1 . . Terminals 6 | . 3 . . . 3 Fabricators . | . . . . . . Repair Stations . | . . . . . . Recycling Units 1 | . . . . . 1 Scanalyzers . | . . . . . . Garrison Access . | . . . . . . Terminal Hacks 20 | . 3 . 17 . . Record 18 | . 2 . 16 . . Prototype ID Bank 1 | . 1 . . . . Derelict Proto ID Bank 1 | . . . 1 . . Fabricator Hacks . | . . . . . . Repair Station Hacks . | . . . . . . Recycling Unit Hacks 1 | . . . . . 1 Report Inventory 1 | . . . . . 1 Scanalyzer . | . . . . . . Garrison Access Hacks . | . . . . . . Unauthorized Hacks . | . . . . . . Terminals . | . . . . . . Fabricators . | . . . . . . Repair Stations . | . . . . . . Recycling Units . | . . . . . . Scanalyzers . | . . . . . . Garrison Access . | . . . . . . Data Cores Recovered . | . . . . . . Used . | . . . . . . Hacking Detections . | . . . . . . Full Trace Events . | . . . . . . Feedback Events . | . . . . . . Feedback Blocked . | . . . . . . Robot Schematics Acquired . | . . . . . . Robots Built . | . . . . . . Authchips . | . . . . . . Time . | . . . . . . Total Robot Build Rating . | . . . . . . Part Schematics Acquired . | . . . . . . Parts Built . | . . . . . . Authchips . | . . . . . . Time . | . . . . . . Total Part Build Rating . | . . . . . . Parts Repaired . | . . . . . . Time . | . . . . . . Parts Recycled . | . . . . . . Recycled Matter . | . . . . . . Retrieved Matter . | . . . . . . Retrieved Components . | . . . . . . Parts Scanalyzed . | . . . . . . Part Schematics Acquired . | . . . . . . Parts Damaged . | . . . . . . Bothacking | -11 -10 -10 -10 -9 -8 ------------ Run | Yrd Mat Min Exi Min Mat Used RIF Installer . | . . . . . . Robots Hacked . | . . . . . . Non-combat . | . . . . . . Combat . | . . . . . . Robot Hacks Applied . | . . . . . . Relay Couplers Released . | . . . . . . Fabnet Peak Effective % . | . . . . . . Robots Rewired . | . . . . . . Allies Hacked . | . . . . . . Hacks Repelled . | . . . . . . Allies | -11 -10 -10 -10 -9 -8 -------- Run | Yrd Mat Min Exi Min Mat Total Allies . | . . . . . . Largest Group . | . . . . . . Highest-Rated Group . | . . . . . . Highest-Rated Ally . | . . . . . . Total Orders . | . . . . . . Ally Attacks . | . . . . . . Total Damage . | . . . . . . Kills . | . . . . . . Allies Corrupted . | . . . . . . Allies Melted . | . . . . . . Intel | -11 -10 -10 -10 -9 -8 ------- Run | Yrd Mat Min Exi Min Mat Robot Analysis Total . | . . . . . . Derelict Logs Recovered . | . . . . . . Drone Launches . | . . . . . . Drone Recoveries . | . . . . . . Exploration | -11 -10 -10 -10 -9 -8 ------------- Run | Yrd Mat Min Exi Min Mat Turns Passed 1097 | 83 211 70 398 62 273 Spaces Moved 1074 | 74 187 63 439 46 265 Core 85 | 2 . . . . 83 Treads . | . . . . . . Legs 9 | . . . . . 9 Wheels 937 | 72 187 63 439 46 130 Hover . | . . . . . . Flight 43 | . . . . . 43 Fastest Speed 35 | 50 90 90 90 90 35 Average Speed 86 | 89 90 90 90 90 75 Slowest Speed 250 | 100 90 90 90 90 250 Overloaded Moves . | . . . . . . Propulsion Burnouts . | . . . . . . Robots Hopped . | . . . . . . Cave-ins Triggered . | . . . . . . Exploration Rate (%) 26 | 4 28 16 72 12 25 Regions Visited 5 Branch Regions 3 Pre-discovered Areas . | . . . . . . Known Exits Taken . | . . . . . . Unknown Exits Taken 5 | 1 1 1 1 1 . Scrap Searched . | . . . . . . Spaces Dug . | . . . . . . Terrain Destroyed . | . . . . . . Melee . | . . . . . . Projectile . | . . . . . . AOE . | . . . . . . Terrain Rammed . | . . . . . . Walls Destroyed . | . . . . . . Machines Disabled . | . . . . . . Actions | -11 -10 -10 -10 -9 -8 --------- Run | Yrd Mat Min Exi Min Mat Total 1203 | 85 224 76 442 66 310 Wait 66 | . 22 14 . 21 9 Move 1069 | 73 186 62 438 45 265 Hop . | . . . . . . Pick Up 11 | 4 7 . . . . Fast Attach 14 | 7 . . 1 . 6 Attach 7 | . 1 . . . 6 Detach 3 | . 1 . 1 . 1 Swap . | . . . . . . Drop 4 | . 3 . 1 . . Fire 22 | 1 4 . . . 17 Melee . | . . . . . . Ram 6 | . . . . . 6 Kick . | . . . . . . Crush . | . . . . . . Escape Stasis . | . . . . . . Rewire 1 | . . . 1 . . Trap . | . . . . . . Miscellaneous . | . . . . . . Route ------- -11/Scrapyard -10/Materials -10/Mines -10/Exiles (discovered 2 exits: [*Min x2]) -9/Mines -8/Materials History --------- Turn | Location | Event 25 | -11/Scrapyard | Discovered new exit (range 16) 84 | -11/Scrapyard | Entered Materials 226 | -10/Materials | Met 8R-AWN 287 | -10/Materials | Discovered new exit (range 8) 295 | -10/Materials | Entered Mines 296 | -10/Mines | Followed 8R-AWN into the Mines 318 | -10/Mines | Build established: Mutant 360 | -10/Mines | Discovered new exit (range 5) 365 | -10/Mines | Entered Exiles 392 | -10/Exiles | Discovered new exit (range 15) 429 | -10/Exiles | Welcomed by 8R-AWN 450 | -10/Exiles | Met EX-HEX 511 | -10/Exiles | Met EX-DEC 534 | -10/Exiles | Met EX-BIN 582 | -10/Exiles | Aligned with FarCom system 583 | -10/Exiles | Given EX-Vault access code 607 | -10/Exiles | Opened EX-Vault 618 | -10/Exiles | Found Cloak of Protection 662 | -10/Exiles | Warned to stay clear of 0b10 Research branches 753 | -10/Exiles | Discovered new exit (range 12) 763 | -10/Exiles | Left Exiles lab with Cloak of Protection 763 | -10/Exiles | Entered Mines 793 | -9/Mines | Discovered new exit (range 15) 825 | -9/Mines | Entered Materials 825 | -8/Materials | Evolved 4 slots: Propulsion x2, Utility x2 974 | -8/Materials | Lost 6 parts (1p1n2u2w) 1011 | -8/Materials | Core integrity fell below 50% 1042 | -8/Materials | Core integrity fell below 20% 1083 | -8/Materials | Lost 10 parts (2p3n3u2w) 1098 | -8/Materials | Destroyed by Y-45 Defender with Heavy Assault Rifle Last Messages --------------- 01018_ Acquired Imp. Ion Engine. 01021_ Penetrated by Slug. 01031_ Critical hit (Destroy). 01031_ Lgt. Armor Plating destroyed. 01035_ Imp. Ion Engine destroyed. 01035_ Lgt. Assault Rifle destroyed. 01036_ Penetrated by Slug. 01036_ Aluminum Leg destroyed. 01041_ Hvy. Assault Rifle destroyed. 01047_ Slug penetrates Material Compactor. 01047_ Material Compactor disabled. 01047_ S-10 Pest destroyed. 01047_ ECM Suite destroyed. 01050_ Acquired Flight Unit. 01052_ Penetrated by Slug. 01052_ Flight Unit destroyed. 01052_ Acquired 11 matter. 01055_ U-05 Engineer builds a Door. 01067_ Connecting with Terminal... 01082_ Acquired Cesium-ion Thruster. Map ----- +----------------------------------------------------+ | ??????????????????????????????????????????? | | ??????????????????????????????????????????? | | ??????????????????????????????????????????? | | ??????????????????????????????????????????? | | ??????????????????????????????????????????? | | ??????????????????????????????????????????? | | ??????????????????????????????????????????? | | ??????????????????????????????????????????? | | ??????????????????????????????????????????? | | ??????????????????????????????????????????? | | ????????????????###???????????????????????? | | ???????????????? ???????????????????????? | | ???????????????? Y???w???????????????????? | | ???????????????? ???????????????????????? | | ???????????????? ???????????????????????? | | ????????????????# ???????????????????????? | | ????????????????# #############??????????? | | ????????????????# # """ """ #??????????? | | ????????????????# # """"""""" #??????????? | | ??????????????###k # """"" " #??????????? | | ??????????????? # #??????????? | | ????????????o??? + = /#??????????? | | ????????????????# # ! #??????????? | | ????????????????# # #??????????? | | ????????????????# ####+#####+############# | | ????????????????# @ | | ????????????????# ################### | | ????????????????######+#################### | | ????????????????# + | | ????????????????# ############## | | ????????????????# #????????????? | | ????????????????# #????????????? | | ????????????????# #????????????? | | ????????????????##############????????????? | | | | | | | | | | | | | | | | | | | | | | | | | | | | | | | | | +----------------------------------------------------+ Best States ------------- Heat Dissipation 31 Energy Generation 12 Energy Capacity 265 Matter Stores 300 Matter Capacity 300 Sight Range 16 Terrain Scan Range 16 Terrain Scan Density 10 ECM Strength 1 Cloak Strength 5 Armor Coverage 150 Power Shielding 33 Evasion (%) 63 Item Schematics ----------------- None Robot Schematics ------------------ None Fabricated ------------ Nothing Alien Tech Used ----------------- None Achievements -------------- None Challenges ------------ None Game ------ Seed LegOmegaClaymores Manual? 0 Play Time 00:38:16 Cumulative 14.8 hours Start 2024.05.10 @ 13:09:41 End 2024.05.10 @ 13:52:24 Sessions 1 Manual Loads 0 Difficulty Rogue Special Mode None Game No. 18 Rogue 18 Adventurer 0 Explorer 0 Win Type - Total 0 Types 0/0/0/0/0/0/0/0/0 Lore% 10 Gallery% 11 Achievement% 12 Wizard Run 0 Options --------- Layout 1 ASCII 1 Keyboard 1 Movement Vi Keybinds 0 Fullscreen 2 Font 24/Smallcaps Map View 50x35 Zoom Use 0% Tactical HUD 1 Map Filters NONE Filters NONE Steam 1 RUN: 4343952e-c5ca-4ab1-b9dc-a3af16e24a29